Workbook

Sheet Lump sum
A1: Year | B1: year start | C1: Return | D1: investment | E1: year end | F1: Inputs for IRR | H1: Year | I1: year start | J1: Return | K1: investment | L1: year end | M1: Inputs for IRR | O1: Year | P1: year start | Q1: Return | R1: investment | S1: year end
A2: 0 | B2: 0 | C2: 0.2 | D2: 12000 | E2: =D2*(1+C2) -> 14400 | F2: =-D2 -> -12000 | H2: 0 | I2: 0 | J2: 0.2 | K2: 12000 | L2: =K2*(1+J2) -> 14400 | M2: =-K2 -> -12000 | O2: 0 | P2: 0 | Q2: 0.2 | R2: 12000 | S2: =R2*(1+Q2) -> 14400 | T2: =-R2 -> -12000
A3: =A2+1 -> 1 | B3: =E2 -> 14400 | C3: 0.2 | E3: =(D3+E2)*(1+C3) -> 17280 | F3: =-D3 -> 0 | H3: =H2+1 -> 1 | I3: =L2 -> 14400 | J3: -0.2 | L3: =(K3+L2)*(1+J3) -> 11520 | M3: =-K3 -> 0 | O3: =O2+1 -> 1 | P3: =S2 -> 14400 | Q3: -0.2 | S3: =(R3+S2)*(1+Q3) -> 11520 | T3: =-R3 -> 0
A4: =A3+1 -> 2 | B4: =E3 -> 17280 | C4: 0.2 | E4: =(D4+E3)*(1+C4) -> 20736 | F4: 0 | H4: =H3+1 -> 2 | I4: =L3 -> 11520 | J4: 1.225 | L4: =(K4+L3)*(1+J4) -> 25632 | M4: 0 | O4: =O3+1 -> 2 | P4: =S3 -> 11520 | Q4: 1.225 | S4: =(R4+S3)*(1+Q4) -> 25632 | T4: 0
A5: 3 | B5: 20736 | C5: 0.2 | E5: 24883.2 | F5: 0 | H5: 3 | I5: 25632 | J5: -0.1 | L5: 23068.8 | M5: 0 | O5: 3 | P5: 25632 | Q5: -0.1 | S5: 23068.8 | T5: 0
A6: 4 | B6: 24883.2 | C6: 0.2 | E6: 29859.84 | F6: 0 | H6: 4 | I6: 23068.8 | J6: 0.050602 | L6: 24236.12742 | M6: 0 | O6: 4 | P6: 23068.8 | Q6: 0.050602 | S6: 24236.12742 | T6: 0
A7: 5 | B7: 29859.84 | C7: 0.2 | E7: 35831.808 | F7: 0 | H7: 5 | I7: 24236.12742 | J7: 0.1 | L7: 26659.74016 | M7: 0 | O7: 5 | P7: 24236.12742 | Q7: 0.1 | S7: 26659.74016 | T7: 0
A8: 6 | B8: 35831.808 | C8: 0.2 | E8: 42998.1696 | F8: 0 | H8: 6 | I8: 26659.74016 | J8: -0.15 | L8: 22660.77914 | M8: 0 | O8: 6 | P8: 26659.74016 | Q8: -0.15 | S8: 22660.77914 | T8: 0
A9: 7 | B9: 42998.1696 | C9: 0.2 | E9: 51597.80352 | F9: 0 | H9: 7 | I9: 22660.77914 | J9: 0.15 | L9: 26059.89601 | M9: 0 | O9: 7 | P9: 22660.77914 | Q9: 0.15 | S9: 26059.89601 | T9: 0
A10: 8 | B10: 51597.80352 | C10: 0.2 | E10: 61917.36422 | F10: 0 | H10: 8 | I10: 26059.89601 | J10: 1.25 | L10: 58634.76601 | M10: 0 | O10: 8 | P10: 26059.89601 | Q10: 1.25 | S10: 58634.76601 | T10: 0
A11: 9 | B11: 61917.36422 | C11: 0.2 | E11: 74300.83707 | F11: 0 | H11: 9 | I11: 58634.76601 | J11: 0.3 | L11: 76225.19582 | M11: 0 | O11: 9 | P11: 58634.76601 | Q11: 0.3 | S11: 76225.19582 | T11: 0
A12: 10 | B12: 74300.83707 | C12: 0.2 | E12: 89161.00448 | F12: 0 | H12: 10 | I12: 76225.19582 | J12: 0.4 | L12: 106715.2741 | M12: 0 | O12: 10 | P12: 76225.19582 | Q12: 0.4 | S12: 106715.2741 | T12: 0
A13: 11 | B13: 89161.00448 | C13: 0.2 | E13: 106993.2054 | F13: 0 | H13: 11 | I13: 106715.2741 | J13: -0.3 | L13: 74700.6919 | M13: 0 | O13: 11 | P13: 106715.2741 | Q13: -0.3 | S13: 74700.6919 | T13: 0
A14: 12 | B14: 106993.2054 | C14: 0.2 | E14: 128391.8465 | F14: 0 | H14: 12 | I14: 74700.6919 | J14: 0.8 | L14: 134461.2454 | M14: 0 | O14: 12 | P14: 74700.6919 | Q14: 0.706160605 | S14: 127451.3777 | T14: 0
A15: 13 | B15: 128391.8465 | C15: 0.2 | E15: 154070.2157 | F15: 0 | H15: 13 | I15: 134461.2454 | J15: 0.25 | L15: 168076.5568 | M15: 0 | O15: 13 | P15: 127451.3777 | Q15: 0.22 | S15: 155490.6808 | T15: 0
A16: 14 | B16: 154070.2157 | C16: 0.2 | E16: 184884.2589 | F16: 0 | H16: 14 | I16: 168076.5568 | J16: 0.1 | L16: 184884.2125 | M16: 0 | O16: 14 | P16: 155490.6808 | Q16: 0.01 | S16: 157045.5876 | T16: 0
A17: 15 | B17: =E16 -> 184884.2589 | F17: =E16 -> 184884.2589 | H17: 15 | I17: 184884.2125 | M17: =L16 -> 184884.2125 | O17: 15 | P17: 157045.5876 | T17: =S16 -> 157045.5876
B19: CAGR | C19: =((1+C2)*(1+C3)*(1+C4)*(1+C5)*(1+C6)*(1+C7)*(1+C8)*(1+C9)*(1+C10)*(1+C11)*(1+C12)*(1+C13)*(1+C14)*(1+C15)*(1+C16))^(1/15)-1 -> 0.2 | E19: IRR | F19: =IRR(F2:F17) -> 0.2 | I19: CAGR | J19: =((1+J2)*(1+J3)*(1+J4)*(1+J5)*(1+J6)*(1+J7)*(1+J8)*(1+J9)*(1+J10)*(1+J11)*(1+J12)*(1+J13)*(1+J14)*(1+J15)*(1+J16))^(1/15)-1 -> 0.1999999799 | L19: IRR | M19: =IRR(M2:M17) -> 0.1999999799 | Q19: =((1+Q2)*(1+Q3)*(1+Q4)*(1+Q5)*(1+Q6)*(1+Q7)*(1+Q8)*(1+Q9)*(1+Q10)*(1+Q11)*(1+Q12)*(1+Q13)*(1+Q14)*(1+Q15)*(1+Q16))^(1/15)-1 -> 0.1870152527 | T19: =IRR(T2:T17) -> 0.1870152527
C21: =AVERAGE(C2:C16) -> 0.2 | E21: =D2*(1+20%)^15 -> 184884.2589 | J21: =AVERAGE(J2:J16) -> 0.2717068 | P21: =P17-B17 -> -27838.67131 | Q21: =AVERAGE(Q2:Q16) -> 0.2574508403
C22: =STDEV(C2:C16) -> 2.872975022e-17 | J22: =STDEV(J2:J16) -> 0.4747794063 | Q22: =STDEV(Q2:Q16) -> 0.4708377287
C24: =((1+C21)^2-C22^2)^0.5-1 -> 0.2 | J24: =((1+J21)^2-J22^2)^0.5-1 -> 0.1797553562 | Q24: =((1+Q21)^2-Q22^2)^0.5-1 -> 0.1659736057
E25: =F19-C24 -> 0 | L25: =M19-J24 -> 0.02024462368 | S25: =T19-Q24 -> 0.02104164705
Q26: =(((1+Q21)^2-Q22^2)-1)/2 -> 0.1797472245 | S26: =S25/2 -> 0.01052082353
S27: =Q19+S26 -> 0.1975360762
A31: 12000 | B31: 2002
A32: 100000 | B32: 2015 | C32: =(A32/A31)^(1/(B32-B31))-1 -> 0.1771510974

Sheet SIP
A1: Year | B1: year start | C1: Return | D1: investment | E1: year end | F1: Inputs for IRR | J1: Year | K1: year start | L1: Return | M1: investment | N1: year end | O1: Inputs for IRR | R1: Year | S1: year start | T1: Return | U1: investment | V1: year end | W1: Inputs for IRR
A2: 0 | B2: 0 | C2: 0.2 | D2: 12000 | E2: =D2*(1+C2) -> 14400 | F2: =-D2 -> -12000 | H2: =(1+C2) -> 1.2 | J2: 0 | K2: 0 | L2: 0.2 | M2: 12000 | N2: =M2*(1+L2) -> 14400 | O2: =-M2 -> -12000 | R2: 0 | S2: 0 | T2: 0.2 | U2: 12000 | V2: =U2*(1+T2) -> 14400 | W2: =-U2 -> -12000 | Y2: =(1+T2) -> 1.2 | AA2: =(1+T2) -> 1.2
A3: =A2+1 -> 1 | B3: =E2 -> 14400 | C3: 0.2 | D3: =D2 -> 12000 | E3: =(D3+E2)*(1+C3) -> 31680 | F3: =-D3 -> -12000 | H3: =(1+C3)*(1+H2) -> 2.64 | J3: =J2+1 -> 1 | K3: =N2 -> 14400 | L3: -0.2 | M3: =M2 -> 12000 | N3: =(M3+N2)*(1+L3) -> 21120 | O3: =-M3 -> -12000 | R3: =R2+1 -> 1 | S3: =V2 -> 14400 | T3: -0.2 | U3: =U2 -> 12000 | V3: =(U3+V2)*(1+T3) -> 21120 | W3: =-U3 -> -12000 | Y3: =(1+T3)*(1+Y2) -> 1.76 | AA3: =(1+T3) -> 0.8
A4: =A3+1 -> 2 | B4: =E3 -> 31680 | C4: 0.2 | D4: =D3 -> 12000 | E4: =(D4+E3)*(1+C4) -> 52416 | F4: -12000 | H4: =(1+C4)*(1+H3) -> 4.368 | J4: =J3+1 -> 2 | K4: =N3 -> 21120 | L4: 1.225 | M4: =M3 -> 12000 | N4: =(M4+N3)*(1+L4) -> 73692 | O4: -12000 | R4: =R3+1 -> 2 | S4: =V3 -> 21120 | T4: 1.225 | U4: =U3 -> 12000 | V4: =(U4+V3)*(1+T4) -> 73692 | W4: -12000 | Y4: =(1+T4)*(1+Y3) -> 6.141 | AA4: 2.225
A5: 3 | B5: 52416 | C5: 0.2 | D5: 12000 | E5: 77299.2 | F5: -12000 | H5: =(1+C5)*(1+H4) -> 6.4416 | J5: 3 | K5: 73692 | L5: -0.1 | M5: 12000 | N5: 77122.8 | O5: -12000 | R5: 3 | S5: 73692 | T5: -0.1 | U5: 12000 | V5: 77122.8 | W5: -12000 | Y5: =(1+T5)*(1+Y4) -> 6.4269 | AA5: 0.9
A6: 4 | B6: 77299.2 | C6: 0.2 | D6: 12000 | E6: 107159.04 | F6: -12000 | H6: 8.92992 | J6: 4 | K6: 77122.8 | L6: 0.050602 | M6: 12000 | N6: 93632.59193 | O6: -12000 | R6: 4 | S6: 77122.8 | T6: 0.050602 | U6: 12000 | V6: 93632.59193 | W6: -12000 | Y6: 7.802715994 | AA6: 1.050602
A7: 5 | B7: 107159.04 | C7: 0.2 | D7: 12000 | E7: 142990.848 | F7: -12000 | H7: 11.915904 | J7: 5 | K7: 93632.59193 | L7: 0.1 | M7: 12000 | N7: 116195.8511 | O7: -12000 | R7: 5 | S7: 93632.59193 | T7: 0.1 | U7: 12000 | V7: 116195.8511 | W7: -12000 | Y7: 9.682987593 | AA7: 1.1
A8: 6 | B8: 142990.848 | C8: 0.2 | D8: 12000 | E8: 185989.0176 | F8: -12000 | H8: 15.4990848 | J8: 6 | K8: 116195.8511 | L8: -0.15 | M8: 12000 | N8: 108966.4735 | O8: -12000 | R8: 6 | S8: 116195.8511 | T8: -0.15 | U8: 12000 | V8: 108966.4735 | W8: -12000 | Y8: 9.080539454 | AA8: 0.85
A9: 7 | B9: 185989.0176 | C9: 0.2 | D9: 12000 | E9: 237586.8211 | F9: -12000 | H9: 19.79890176 | J9: 7 | K9: 108966.4735 | L9: 0.15 | M9: 12000 | N9: 139111.4445 | O9: -12000 | R9: 7 | S9: 108966.4735 | T9: 0.15 | U9: 12000 | V9: 139111.4445 | W9: -12000 | Y9: 11.59262037 | AA9: 1.15
A10: 8 | B10: 237586.8211 | C10: 0.2 | D10: 12000 | E10: 299504.1853 | F10: -12000 | H10: 24.95868211 | J10: 8 | K10: 139111.4445 | L10: 1.25 | M10: 12000 | N10: 340000.7501 | O10: -12000 | R10: 8 | S10: 139111.4445 | T10: 1.25 | U10: 12000 | V10: 340000.7501 | W10: -12000 | Y10: 28.33339584 | AA10: 2.25
A11: 9 | B11: 299504.1853 | C11: 0.2 | D11: 12000 | E11: 373805.0224 | F11: -12000 | H11: 31.15041853 | J11: 9 | K11: 340000.7501 | L11: 0.3 | M11: 12000 | N11: 457600.9751 | O11: -12000 | R11: 9 | S11: 340000.7501 | T11: 0.3 | U11: 12000 | V11: 457600.9751 | W11: -12000 | Y11: 38.13341459 | AA11: 1.3
A12: 10 | B12: 373805.0224 | C12: 0.2 | D12: 12000 | E12: 462966.0269 | F12: -12000 | H12: 38.58050224 | J12: 10 | K12: 457600.9751 | L12: 0.4 | M12: 12000 | N12: 657441.3651 | O12: -12000 | R12: 10 | S12: 457600.9751 | T12: 0.4 | U12: 12000 | V12: 657441.3651 | W12: -12000 | Y12: 54.78678042 | AA12: 1.4
A13: 11 | B13: 462966.0269 | C13: 0.2 | D13: 12000 | E13: 569959.2323 | F13: -12000 | H13: 47.49660269 | J13: 11 | K13: 657441.3651 | L13: -0.3 | M13: 12000 | N13: 468608.9556 | O13: -12000 | R13: 11 | S13: 657441.3651 | T13: -0.3 | U13: 12000 | V13: 468608.9556 | W13: -12000 | Y13: 39.0507463 | AA13: 0.7
A14: 12 | B14: 569959.2323 | C14: 0.2 | D14: 12000 | E14: 698351.0787 | F14: -12000 | H14: 58.19592323 | J14: 12 | K14: 468608.9556 | L14: 0.8 | M14: 12000 | N14: 865096.12 | O14: -12000 | R14: 12 | S14: 468608.9556 | T14: 0.706160605 | U14: 12000 | V14: 819996.0664 | W14: -12000 | Y14: 68.33300553 | AA14: 1.706160605
A15: 13 | B15: 698351.0787 | C15: 0.2 | D15: 12000 | E15: 852421.2945 | F15: -12000 | H15: 71.03510787 | J15: 13 | K15: 865096.12 | L15: 0.25 | M15: 12000 | N15: 1096370.15 | O15: -12000 | R15: 13 | S15: 819996.0664 | T15: 0.22 | U15: 12000 | V15: 1015035.201 | W15: -12000 | Y15: 84.58626675 | AA15: 1.22
A16: 14 | B16: 852421.2945 | C16: 0.2 | D16: 12000 | E16: 1037305.553 | F16: -12000 | H16: 86.44212945 | J16: 14 | K16: 1096370.15 | L16: 0.1 | M16: 12000 | N16: 1219207.165 | O16: -12000 | R16: 14 | S16: 1015035.201 | T16: 0.01 | U16: 12000 | V16: 1037305.553 | W16: -12000 | Y16: 86.44212942 | AA16: 1.01
A17: 15 | B17: 1037305.553 | F17: =E16 -> 1037305.553 | J17: 15 | K17: 1219207.165 | O17: =N16 -> 1219207.165 | R17: 15 | S17: 1037305.553 | W17: =V16 -> 1037305.553
B19: CAGR | C19: =((1+C2)*(1+C3)*(1+C4)*(1+C5)*(1+C6)*(1+C7)*(1+C8)*(1+C9)*(1+C10)*(1+C11)*(1+C12)*(1+C13)*(1+C14)*(1+C15)*(1+C16))^(1/15)-1 -> 0.2 | E19: IRR | F19: =IRR(F2:F17) -> 0.2 | H19: =H16*D16 -> 1037305.553 | K19: CAGR | L19: =((1+L2)*(1+L3)*(1+L4)*(1+L5)*(1+L6)*(1+L7)*(1+L8)*(1+L9)*(1+L10)*(1+L11)*(1+L12)*(1+L13)*(1+L14)*(1+L15)*(1+L16))^(1/15)-1 -> 0.1999999799 | N19: IRR | O19: =IRR(O2:O17) -> 0.2175378351 | S19: CAGR | T19: =((1+T2)*(1+T3)*(1+T4)*(1+T5)*(1+T6)*(1+T7)*(1+T8)*(1+T9)*(1+T10)*(1+T11)*(1+T12)*(1+T13)*(1+T14)*(1+T15)*(1+T16))^(1/15)-1 -> 0.1870152527 | V19: IRR | W19: =IRR(W2:W17) -> 0.2 | Y19: =Y16*U16 -> 1037305.553 | AA19: =PRODUCT(AA2:AA16)-1 -> 12.0871323
AB20: =(1+T24)*AA19/T24 -> 
C21: =AVERAGE(C2:C16) -> 0.2
C22: =STDEV(C2:C16) -> 2.872975022e-17 | H22: =(K17-H19)/H19 -> 0.1753597203
C24: =((1+C21)^2-C22^2)^0.5-1 -> 0.2 | G24: =(1+20%)*12000*((1+20%)^15-1)/20% -> 1037305.553
E25: =F19-C24 -> -6.578071421e-15
E28: =C27/D16 -> 0
